[Event "UK Open Blitz Championships 2024 - London Qualifier"]
[Site "London, United Kingdom"]
[Date "2024.09.21"]
[Round "6.2"]
[White "Dong, Bao Nghia"]
[Black "Royal, Shreyas"]
[Result "0-1"]
[TimeControl "3 minutes + 2 seconds incr. from move 1"]
[WhiteTitle "FM"]
[BlackTitle "IM"]
[WhiteFideId "12400343"]
[BlackFideId "448869"]
[WhiteElo "2306"]
[BlackElo "2331"]

1. e4 {[%clk 00:03:03]} {[%emt 00:00:01]} e5 {[%clk 00:03:03]} {[%emt
00:00:02]} 2. Nf3 {[%clk 00:03:04]} {[%emt 00:00:01]} Nc6 {[%clk 00:03:04]} 3.
Bc4 {[%clk 00:03:05]} Bc5 {[%clk 00:03:05]} 4. O-O {[%clk 00:03:05]} {[%emt
00:00:02]} Nf6 {[%clk 00:03:06]} {[%emt 00:00:01]} 5. d3 {[%clk 00:03:05]}
{[%emt 00:00:01]} d6 {[%clk 00:03:07]} {[%emt 00:00:01]} 6. h3 {[%clk
00:03:07]} O-O {[%clk 00:03:07]} {[%emt 00:00:02]} 7. c3 {[%clk 00:03:08]} a5
{[%clk 00:03:08]} {[%emt 00:00:01]} 8. Re1 {[%clk 00:03:05]} {[%emt 00:00:05]}
h6 {[%clk 00:03:09]} {[%emt 00:00:01]} 9. Nbd2 {[%clk 00:03:05]} {[%emt
00:00:01]} Be6 {[%clk 00:03:10]} 10. Bb3 {[%clk 00:02:55]} {[%emt 00:00:13]}
Re8 {[%clk 00:03:05]} {[%emt 00:00:08]} 11. Nf1 {[%clk 00:02:55]} {[%emt
00:00:01]} Bxb3 {[%clk 00:02:59]} {[%emt 00:00:08]} 12. axb3 {[%clk 00:02:49]}
{[%emt 00:00:08]} d5 {[%clk 00:02:50]} {[%emt 00:00:11]} 13. Qc2 {[%clk
00:02:41]} {[%emt 00:00:10]} Qd7 {[%clk 00:02:40]} {[%emt 00:00:12]} 14. exd5
{[%clk 00:02:31]} {[%emt 00:00:13]} Nxd5 {[%clk 00:02:38]} {[%emt 00:00:04]} 15.
b4 {[%clk 00:02:28]} {[%emt 00:00:05]} axb4 {[%clk 00:02:13]} {[%emt 00:00:27]}
16. Rxa8 {[%clk 00:02:26]} {[%emt 00:00:03]} Rxa8 {[%clk 00:02:14]} 17. Nxe5
{[%clk 00:02:27]} {[%emt 00:00:02]} Nxe5 {[%clk 00:02:10]} {[%emt 00:00:06]} 18.
Rxe5 {[%clk 00:02:27]} {[%emt 00:00:01]} Be7 {[%clk 00:02:01]} {[%emt
00:00:10]} 19. d4 {[%clk 00:02:22]} {[%emt 00:00:08]} bxc3 {[%clk 00:01:57]}
{[%emt 00:00:06]} 20. bxc3 {[%clk 00:02:23]} {[%emt 00:00:01]} c6 {[%clk
00:01:57]} {[%emt 00:00:02]} 21. Re1 {[%clk 00:02:13]} {[%emt 00:00:12]} Qc7
{[%clk 00:01:52]} {[%emt 00:00:06]} 22. c4 {[%clk 00:01:58]} {[%emt 00:00:17]}
Nf6 {[%clk 00:01:43]} {[%emt 00:00:12]} 23. Ng3 {[%clk 00:01:54]} {[%emt
00:00:07]} Bb4 {[%clk 00:01:42]} {[%emt 00:00:02]} 24. Bd2 {[%clk 00:01:50]}
{[%emt 00:00:06]} Bxd2 {[%clk 00:01:43]} {[%emt 00:00:01]} 25. Qxd2 {[%clk
00:01:51]} {[%emt 00:00:01]} Qd7 {[%clk 00:01:44]} 26. Qf4 {[%clk 00:01:27]}
{[%emt 00:00:26]} Re8 {[%clk 00:01:20]} {[%emt 00:00:26]} 27. Re5 {[%clk
00:01:25]} {[%emt 00:00:04]} Rxe5 {[%clk 00:01:14]} {[%emt 00:00:09]} 28. dxe5
{[%clk 00:01:26]} {[%emt 00:00:01]} Ne8 {[%clk 00:01:13]} {[%emt 00:00:03]} 29.
Nf5 {[%clk 00:01:26]} {[%emt 00:00:02]} Nc7 {[%clk 00:01:02]} {[%emt 00:00:13]}
30. Nd6 {[%clk 00:01:24]} {[%emt 00:00:05]} Ne6 {[%clk 00:01:03]} {[%emt
00:00:01]} 31. Qg4 {[%clk 00:01:15]} {[%emt 00:00:10]} Qc7 {[%clk 00:01:00]}
{[%emt 00:00:05]} 32. f4 {[%clk 00:01:14]} {[%emt 00:00:03]} Qb6+ {[%clk
00:01:01]} 33. Kh2 {[%clk 00:01:15]} Qd4 {[%clk 00:00:59]} {[%emt 00:00:03]} 34.
g3 {[%clk 00:01:03]} {[%emt 00:00:15]} Qf2+ {[%clk 00:00:58]} {[%emt 00:00:03]}
35. Kh1 {[%clk 00:01:03]} {[%emt 00:00:02]} Qf1+ {[%clk 00:00:55]} {[%emt
00:00:06]} 36. Kh2 {[%clk 00:01:05]} Nd4 {[%clk 00:00:53]} {[%emt 00:00:04]} 37.
Qc8+ {[%clk 00:00:41]} {[%emt 00:00:26]} Kh7 {[%clk 00:00:54]} 38. g4 {[%clk
00:00:42]} Qxf4+ {[%clk 00:00:48]} {[%emt 00:00:09]} 39. Kg2 {[%clk 00:00:44]}
Qf3+ {[%clk 00:00:47]} {[%emt 00:00:03]} 40. Kh2 {[%clk 00:00:44]} {[%emt
00:00:02]} Qe2+ {[%clk 00:00:46]} {[%emt 00:00:02]} 41. Kh1 {[%clk 00:00:43]}
{[%emt 00:00:03]} Qxe5 {[%clk 00:00:39]} {[%emt 00:00:10]} 42. Nxb7 {[%clk
00:00:32]} {[%emt 00:00:14]} Qe1+ {[%clk 00:00:37]} {[%emt 00:00:03]} 43. Kg2
{[%clk 00:00:33]} Qe2+ {[%clk 00:00:39]} 44. Kh1 {[%clk 00:00:34]} Qf3+ {[%clk
00:00:39]} {[%emt 00:00:02]} 45. Kh2 {[%clk 00:00:36]} Qf2+ {[%clk 00:00:23]}
{[%emt 00:00:18]} 46. Kh1 {[%clk 00:00:37]} Qg3 {[%clk 00:00:23]} {[%emt
00:00:02]} 47. g5 {[%clk 00:00:29]} {[%emt 00:00:10]} hxg5 {[%clk 00:00:23]}
{[%emt 00:00:03]} 48. Qg4 {[%clk 00:00:24]} {[%emt 00:00:07]} Qe1+ {[%clk
00:00:24]} 49. Kg2 {[%clk 00:00:24]} {[%emt 00:00:02]} Qd2+ {[%clk 00:00:22]}
{[%emt 00:00:04]} 50. Kh1 {[%clk 00:00:18]} {[%emt 00:00:08]} Qc1+ {[%clk
00:00:23]} 51. Kg2 {[%clk 00:00:19]} Ne6 {[%clk 00:00:17]} {[%emt 00:00:08]} 52.
Qe4+ {[%clk 00:00:13]} {[%emt 00:00:08]} Kg8 {[%clk 00:00:18]} 53. Qxc6 {[%clk
00:00:06]} {[%emt 00:00:09]} Qd2+ {[%clk 00:00:19]} 54. Kf1 {[%clk 00:00:07]}
{[%emt 00:00:02]} Qd3+ {[%clk 00:00:14]} {[%emt 00:00:07]} 55. Kf2 {[%clk
00:00:08]} {[%emt 00:00:01]} Qd2+ {[%clk 00:00:12]} {[%emt 00:00:03]} 56. Kf1
{[%clk 00:00:09]} Nf4 {[%clk 00:00:14]} 57. Qc8+ {[%clk 00:00:06]} {[%emt
00:00:05]} Kh7 {[%clk 00:00:15]} 58. Qf5+ {[%clk 00:00:08]} Kh6 {[%clk
00:00:17]} 59. Qe4 {[%clk 00:00:04]} {[%emt 00:00:06]} Nd3 {[%clk 00:00:17]}
{[%emt 00:00:01]} 60. Qc6+ {[%clk 00:00:05]} {[%emt 00:00:01]} g6 {[%clk
00:00:18]} {[%emt 00:00:01]} 61. Qf3 {[%clk 00:00:07]} Qc1+ {[%clk 00:00:18]}
{[%emt 00:00:02]} 62. Ke2 {[%clk 00:00:07]} {[%emt 00:00:01]} Nf4+ {[%clk
00:00:19]} 63. Kf2 {[%clk 00:00:08]} {[%emt 00:00:01]} Qd2+ {[%clk 00:00:19]}
{[%emt 00:00:01]} 64. Kf1 {[%clk 00:00:07]} {[%emt 00:00:03]} Qc1+ {[%clk
00:00:17]} {[%emt 00:00:05]} 65. Kf2 Qxc4 {[%clk 00:00:18]} 66. Nd6 {[%clk
00:00:07]} {[%emt 00:00:05]} Qc2+ {[%clk 00:00:18]} {[%emt 00:00:02]} 67. Kg3
{[%clk 00:00:07]} {[%emt 00:00:02]} Nh5+ {[%clk 00:00:17]} {[%emt 00:00:03]} 68.
Kg4 {[%clk 00:00:06]} {[%emt 00:00:04]} f5+ {[%clk 00:00:17]} {[%emt 00:00:02]}
69. Nxf5+ {[%clk 00:00:07]} {[%emt 00:00:01]} gxf5+ {[%clk 00:00:18]} {[%emt
00:00:01]} 70. Qxf5 {[%clk 00:00:08]} Qg2# {[%clk 00:00:16]} 0-1

[Event "UK Open Blitz Championships 2024 - London Qualifier"]
[Site "London, United Kingdom"]
[Date "2024.09.21"]
[Round "6.3"]
[White "Wilks, Simon"]
[Black "Badacsonyi, Stanley"]
[Result "0-1"]
[TimeControl "3 minutes + 2 seconds incr. from move 1"]
[BlackTitle "FM"]
[WhiteFideId "427357"]
[BlackFideId "486973"]
[WhiteElo "2066"]
[BlackElo "2332"]

1. e4 {[%clk 00:03:02]} {[%emt 00:00:02]} e5 {[%clk 00:03:04]} 2. Nf3 {[%clk
00:03:02]} {[%emt 00:00:02]} Nc6 {[%clk 00:03:05]} 3. Bb5 {[%clk 00:02:55]}
{[%emt 00:00:09]} a6 {[%clk 00:03:06]} {[%emt 00:00:01]} 4. Ba4 {[%clk
00:02:56]} d6 {[%clk 00:03:07]} 5. c3 {[%clk 00:02:44]} {[%emt 00:00:14]} Bd7
{[%clk 00:03:08]} {[%emt 00:00:01]} 6. O-O {[%clk 00:02:43]} {[%emt 00:00:03]}
g6 {[%clk 00:03:09]} 7. d4 {[%clk 00:02:35]} {[%emt 00:00:10]} Bg7 {[%clk
00:03:10]} {[%emt 00:00:02]} 8. Re1 {[%clk 00:02:23]} {[%emt 00:00:13]} Nge7
{[%clk 00:03:09]} {[%emt 00:00:02]} 9. Be3 {[%clk 00:02:08]} {[%emt 00:00:17]}
O-O {[%clk 00:03:09]} {[%emt 00:00:03]} 10. Nbd2 {[%clk 00:02:01]} {[%emt
00:00:09]} h6 {[%clk 00:03:08]} {[%emt 00:00:04]} 11. Nf1 {[%clk 00:01:45]}
{[%emt 00:00:17]} f5 {[%clk 00:02:58]} {[%emt 00:00:12]} 12. exf5 {[%clk
00:01:44]} {[%emt 00:00:04]} Nxf5 {[%clk 00:02:59]} 13. Bb3+ {[%clk 00:01:29]}
{[%emt 00:00:17]} Kh7 {[%clk 00:02:59]} {[%emt 00:00:02]} 14. dxe5 {[%clk
00:01:22]} {[%emt 00:00:09]} Nxe5 {[%clk 00:03:00]} 15. Ng3 {[%clk 00:00:49]}
{[%emt 00:00:34]} Nxe3 {[%clk 00:02:55]} {[%emt 00:00:07]} 16. Rxe3 {[%clk
00:00:49]} {[%emt 00:00:03]} Bg4 {[%clk 00:02:56]} 17. Bc2 {[%clk 00:00:26]}
{[%emt 00:00:25]} Bxf3 {[%clk 00:02:49]} {[%emt 00:00:09]} 18. gxf3 {[%clk
00:00:26]} {[%emt 00:00:02]} Qg5 {[%clk 00:02:48]} {[%emt 00:00:04]} 19. Kh1
{[%clk 00:00:17]} {[%emt 00:00:10]} h5 {[%clk 00:02:45]} {[%emt 00:00:04]} 20.
Qe2 {[%clk 00:00:15]} {[%emt 00:00:04]} Kh8 {[%clk 00:02:41]} {[%emt 00:00:07]}
21. Rg1 {[%clk 00:00:15]} {[%emt 00:00:02]} Qh4 {[%clk 00:02:31]} {[%emt
00:00:11]} 22. Ne4 {[%clk 00:00:12]} {[%emt 00:00:05]} Rf4 {[%clk 00:02:30]}
{[%emt 00:00:03]} 23. Ng5 {[%clk 00:00:08]} {[%emt 00:00:05]} Bh6 {[%clk
00:02:15]} {[%emt 00:00:18]} 24. Rxe5 {[%clk 00:00:07]} {[%emt 00:00:03]} dxe5
{[%clk 00:02:09]} {[%emt 00:00:08]} 25. Qxe5+ {[%clk 00:00:08]} Bg7 {[%clk
00:02:11]} 26. Qxc7 {[%clk 00:00:08]} {[%emt 00:00:01]} Raf8 {[%clk 00:02:04]}
{[%emt 00:00:08]} 27. Bxg6 {[%clk 00:00:06]} {[%emt 00:00:04]} R4f6 {[%clk
00:01:51]} {[%emt 00:00:15]} 28. Bb1 {[%clk 00:00:04]} {[%emt 00:00:04]} Qxf2
{[%clk 00:01:37]} {[%emt 00:00:16]} 29. Qc4 {[%clk 00:00:03]} {[%emt 00:00:03]}
Rxf3 {[%clk 00:01:23]} {[%emt 00:00:16]} 30. Qe4 {[%emt 00:00:03]} R3f5 {[%clk
00:01:24]} 31. a3 {[%clk 00:00:03]} {[%emt 00:00:03]} Be5 {[%clk 00:01:13]}
{[%emt 00:00:12]} 32. Nf7+ {[%clk 00:00:03]} {[%emt 00:00:03]} R8xf7 {[%clk
00:01:13]} {[%emt 00:00:02]} 33. Qd5 {[%clk 00:00:03]} {[%emt 00:00:02]} Qxh2#
{[%clk 00:01:13]} {[%emt 00:00:01]} 0-1

[Event "UK Open Blitz Championships 2024 - London Qualifier"]
[Site "London, United Kingdom"]
[Date "2024.09.21"]
[Round "6.4"]
[White "Kirk, Ezra"]
[Black "Han, Yichen"]
[Result "1-0"]
[TimeControl "3 minutes + 2 seconds incr. from move 1"]
[WhiteTitle "IM"]
[BlackTitle "IM"]
[WhiteFideId "600067"]
[BlackFideId "1054430"]
[WhiteElo "2219"]
[BlackElo "2350"]

1. d4 {[%clk 00:03:00]} {[%emt 00:00:04]} Nf6 {[%emt 00:01:41]} 2. Nf3 {[%clk
00:02:59]} {[%emt 00:00:02]} d5 {[%clk 00:01:25]} {[%emt 00:00:01]} 3. Bg5
{[%clk 00:02:57]} {[%emt 00:00:04]} Ne4 {[%clk 00:01:25]} {[%emt 00:00:02]} 4.
Bh4 {[%clk 00:02:35]} {[%emt 00:00:23]} c5 {[%clk 00:01:24]} {[%emt 00:00:02]}
5. dxc5 {[%clk 00:02:25]} {[%emt 00:00:13]} Nc6 {[%clk 00:01:22]} {[%emt
00:00:05]} 6. Nbd2 {[%clk 00:02:20]} {[%emt 00:00:06]} Nxc5 {[%clk 00:01:22]}
{[%emt 00:00:02]} 7. e3 {[%clk 00:02:19]} {[%emt 00:00:03]} Qb6 {[%clk
00:01:22]} {[%emt 00:00:02]} 8. Rb1 {[%clk 00:02:14]} {[%emt 00:00:07]} Bf5
{[%clk 00:01:15]} {[%emt 00:00:10]} 9. a3 {[%clk 00:02:01]} {[%emt 00:00:15]}
e6 {[%clk 00:01:08]} {[%emt 00:00:10]} 10. b4 {[%clk 00:01:50]} {[%emt
00:00:13]} Na4 {[%clk 00:01:03]} {[%emt 00:00:06]} 11. Rb3 {[%clk 00:01:39]}
{[%emt 00:00:12]} a5 {[%clk 00:00:58]} {[%emt 00:00:07]} 12. b5 {[%clk
00:01:12]} {[%emt 00:00:28]} Na7 {[%clk 00:00:58]} {[%emt 00:00:03]} 13. c4
{[%clk 00:00:46]} {[%emt 00:00:28]} Nc5 {[%clk 00:00:59]} {[%emt 00:00:01]} 14.
Rc3 {[%clk 00:00:47]} a4 {[%clk 00:00:46]} {[%emt 00:00:15]} 15. Be2 {[%clk
00:00:47]} {[%emt 00:00:02]} Bd6 {[%clk 00:00:38]} {[%emt 00:00:10]} 16. O-O
{[%clk 00:00:45]} {[%emt 00:00:04]} O-O {[%clk 00:00:38]} {[%emt 00:00:03]} 17.
Nd4 {[%clk 00:00:46]} {[%emt 00:00:02]} Bg6 {[%clk 00:00:39]} 18. cxd5 {[%clk
00:00:46]} {[%emt 00:00:02]} exd5 {[%clk 00:00:40]} {[%emt 00:00:01]} 19. Bg3
{[%clk 00:00:47]} {[%emt 00:00:01]} Be7 {[%clk 00:00:37]} {[%emt 00:00:06]} 20.
N2f3 {[%clk 00:00:35]} {[%emt 00:00:14]} Ne4 {[%clk 00:00:36]} {[%emt
00:00:03]} 21. Rc1 {[%clk 00:00:36]} Bxa3 {[%clk 00:00:36]} {[%emt 00:00:01]}
22. Ra1 {[%clk 00:00:36]} {[%emt 00:00:02]} Bb2 {[%clk 00:00:31]} {[%emt
00:00:07]} 23. Ne5 {[%clk 00:00:23]} {[%emt 00:00:15]} Bxa1 {[%clk 00:00:26]}
{[%emt 00:00:07]} 24. Qxa1 {[%clk 00:00:24]} Bf5 {[%clk 00:00:22]} {[%emt
00:00:06]} 25. Nxf5 {[%emt 00:00:10]} Qf6 {[%clk 00:00:17]} 26. Nd4 {[%clk
00:00:16]} {[%emt 00:00:10]} Nxg3 {[%emt 00:00:05]} 27. hxg3 {[%clk 00:00:14]}
{[%emt 00:00:01]} Qxe5 {[%clk 00:00:17]} {[%emt 00:00:01]} 28. Qxa4 {[%clk
00:00:15]} Nc6 {[%clk 00:00:12]} {[%emt 00:00:07]} 29. Nxc6 {[%clk 00:00:16]}
{[%emt 00:00:01]} bxc6 {[%clk 00:00:14]} 30. Qg4 {[%clk 00:00:12]} {[%emt
00:00:05]} c5 {[%clk 00:00:13]} {[%emt 00:00:03]} 31. b6 {[%clk 00:00:12]}
{[%emt 00:00:02]} Rab8 {[%clk 00:00:14]} 32. Rb1 {[%clk 00:00:13]} c4 {[%clk
00:00:14]} {[%emt 00:00:02]} 33. Qd7 {[%clk 00:00:11]} {[%emt 00:00:04]} Qe4
{[%clk 00:00:14]} {[%emt 00:00:03]} 34. Qb5 {[%clk 00:00:10]} {[%emt 00:00:03]}
Rb7 {[%clk 00:00:12]} {[%emt 00:00:04]} 35. Bf3 {[%clk 00:00:11]} {[%emt
00:00:01]} Qc2 {[%clk 00:00:07]} {[%emt 00:00:07]} 36. Bxd5 {[%clk 00:00:11]}
{[%emt 00:00:01]} Rd7 {[%clk 00:00:07]} {[%emt 00:00:01]} 37. Bxc4 {[%clk
00:00:11]} {[%emt 00:00:03]} Rd2 {[%clk 00:00:08]} {[%emt 00:00:01]} 38. b7
{[%clk 00:00:09]} {[%emt 00:00:04]} Rxf2 {[%clk 00:00:07]} {[%emt 00:00:03]} 39.
Bd5 {[%clk 00:00:10]} Rf6 {[%clk 00:00:06]} {[%emt 00:00:03]} 40. Bf3 {[%clk
00:00:09]} {[%emt 00:00:03]} Rb8 {[%clk 00:00:06]} {[%emt 00:00:02]} 41. g4
{[%clk 00:00:04]} {[%emt 00:00:07]} Rd6 {[%clk 00:00:06]} {[%emt 00:00:02]} 42.
g5 {[%clk 00:00:05]} {[%emt 00:00:02]} Rdd8 {[%clk 00:00:07]} {[%emt 00:00:01]}
43. Qb6 {[%clk 00:00:05]} {[%emt 00:00:01]} Qf5 {[%clk 00:00:07]} {[%emt
00:00:02]} 44. Qxd8+ {[%clk 00:00:05]} {[%emt 00:00:02]} Rxd8 {[%clk 00:00:08]}
{[%emt 00:00:01]} 45. b8=Q {[%emt 00:00:02]} Rf8 {[%clk 00:00:05]} {[%emt
00:00:04]} 46. Qb5 {[%clk 00:00:06]} {[%emt 00:00:02]} Qe6 {[%clk 00:00:06]}
{[%emt 00:00:01]} 47. Qc5 {[%clk 00:00:05]} {[%emt 00:00:02]} Qg6 {[%clk
00:00:07]} {[%emt 00:00:02]} 48. Rc1 {[%clk 00:00:05]} {[%emt 00:00:02]} Re8
{[%clk 00:00:06]} {[%emt 00:00:02]} 49. Kh2 {[%clk 00:00:04]} {[%emt 00:00:03]}
h6 {[%clk 00:00:07]} {[%emt 00:00:02]} 50. gxh6 {[%clk 00:00:03]} {[%emt
00:00:03]} Qxh6+ {[%clk 00:00:09]} 51. Kg1 {[%clk 00:00:04]} {[%emt 00:00:01]}
Rxe3 {[%clk 00:00:08]} {[%emt 00:00:03]} 52. Qc8+ {[%clk 00:00:04]} {[%emt
00:00:02]} Kh7 {[%clk 00:00:09]} 53. Qf5+ {[%clk 00:00:05]} {[%emt 00:00:01]}
g6 {[%clk 00:00:07]} {[%emt 00:00:05]} 54. Qxf7+ {[%clk 00:00:05]} {[%emt
00:00:02]} Qg7 {[%clk 00:00:08]} 55. Qxg7+ {[%clk 00:00:06]} {[%emt 00:00:01]}
Kxg7 {[%clk 00:00:09]} 56. Rc7+ {[%clk 00:00:07]} Kf6 {[%clk 00:00:10]} {[%emt
00:00:01]} 57. Rc5 {[%clk 00:00:08]} Ra3 {[%clk 00:00:11]} {[%emt 00:00:02]} 58.
Kf2 {[%clk 00:00:09]} {[%emt 00:00:01]} Ra4 {[%clk 00:00:11]} 59. Kg3 {[%clk
00:00:10]} Kg7 {[%clk 00:00:11]} {[%emt 00:00:02]} 60. Rc6 {[%clk 00:00:11]}
{[%emt 00:00:02]} Kh6 {[%clk 00:00:12]} 61. Bd1 {[%clk 00:00:11]} {[%emt
00:00:02]} Ra3+ {[%clk 00:00:12]} {[%emt 00:00:02]} 62. Kh4 {[%clk 00:00:11]}
{[%emt 00:00:02]} Ra2 {[%clk 00:00:10]} {[%emt 00:00:05]} 63. Bc2 {[%clk
00:00:11]} {[%emt 00:00:02]} Kg7 {[%clk 00:00:04]} {[%emt 00:00:07]} 64. Rxg6+
{[%clk 00:00:12]} {[%emt 00:00:01]} Kf7 {[%clk 00:00:06]} 65. Rc6 {[%clk
00:00:13]} Kg7 {[%clk 00:00:07]} {[%emt 00:00:02]} 66. g4 {[%clk 00:00:13]} Ra1
{[%clk 00:00:07]} 67. Bf5 {[%clk 00:00:14]} {[%emt 00:00:01]} Ra8 {[%clk
00:00:07]} {[%emt 00:00:02]} 68. Kg5 {[%clk 00:00:14]} {[%emt 00:00:02]} Kh8
{[%clk 00:00:09]} 69. Rc7 {[%clk 00:00:14]} {[%emt 00:00:02]} Rg8+ {[%clk
00:00:09]} {[%emt 00:00:02]} 70. Kh6 {[%clk 00:00:11]} {[%emt 00:00:05]} Rg7
{[%clk 00:00:10]} {[%emt 00:00:02]} 71. Rc8+ {[%clk 00:00:11]} {[%emt
00:00:02]} Rg8 {[%clk 00:00:11]} 72. Rxg8+ {[%clk 00:00:12]} {[%emt 00:00:02]}
Kxg8 {[%clk 00:00:12]} 73. g5 {[%clk 00:00:12]} {[%emt 00:00:02]} 1-0

[Event "UK Open Blitz Championships 2024 - London Qualifier"]
[Site "London, United Kingdom"]
[Date "2024.09.21"]
[Round "6.5"]
[White "Ghasi, Ameet K"]
[Black "Coleman, Robbie"]
[Result "1-0"]
[TimeControl "3 minutes + 2 seconds incr. from move 1"]
[WhiteTitle "IM"]
[WhiteFideId "409200"]
[BlackFideId "2461323"]
[WhiteElo "2524"]
[BlackElo "2000"]

1. Nf3 {[%clk 00:03:02]} {[%emt 00:00:02]} d5 {[%clk 00:03:01]} {[%emt
00:00:03]} 2. g3 {[%clk 00:03:03]} g6 {[%clk 00:02:53]} {[%emt 00:00:10]} 3.
Bg2 {[%clk 00:03:04]} {[%emt 00:00:01]} Bg7 {[%clk 00:02:54]} {[%emt 00:00:02]}
4. d4 {[%clk 00:03:00]} {[%emt 00:00:05]} c6 {[%clk 00:02:48]} {[%emt
00:00:07]} 5. O-O {[%clk 00:03:00]} {[%emt 00:00:02]} Nf6 {[%clk 00:02:44]}
{[%emt 00:00:06]} 6. c4 {[%clk 00:02:55]} {[%emt 00:00:08]} dxc4 {[%clk
00:02:37]} {[%emt 00:00:09]} 7. Nc3 {[%clk 00:02:51]} {[%emt 00:00:06]} b5
{[%clk 00:02:28]} {[%emt 00:00:10]} 8. Ne5 {[%clk 00:02:48]} {[%emt 00:00:05]}
Nd5 {[%clk 00:02:23]} {[%emt 00:00:07]} 9. a4 {[%clk 00:02:15]} {[%emt
00:00:35]} Nxc3 {[%clk 00:01:33]} {[%emt 00:00:52]} 10. bxc3 {[%clk 00:02:15]}
{[%emt 00:00:03]} Bxe5 {[%clk 00:01:20]} {[%emt 00:00:14]} 11. dxe5 {[%clk
00:02:15]} {[%emt 00:00:01]} Qc7 {[%clk 00:00:57]} {[%emt 00:00:26]} 12. Bh6
{[%clk 00:01:46]} {[%emt 00:00:31]} Bb7 {[%clk 00:00:49]} {[%emt 00:00:09]} 13.
e6 {[%clk 00:01:44]} {[%emt 00:00:05]} fxe6 {[%clk 00:00:31]} {[%emt 00:00:21]}
14. Qd4 {[%clk 00:01:24]} {[%emt 00:00:21]} e5 {[%clk 00:00:29]} {[%emt
00:00:05]} 15. Qe3 {[%clk 00:01:26]} Nd7 {[%clk 00:00:25]} {[%emt 00:00:05]} 16.
axb5 {[%clk 00:01:25]} {[%emt 00:00:03]} cxb5 {[%clk 00:00:24]} {[%emt
00:00:04]} 17. Rxa7 {[%clk 00:01:26]} {[%emt 00:00:02]} Rxa7 {[%clk 00:00:18]}
{[%emt 00:00:07]} 18. Qxa7 {[%clk 00:01:26]} {[%emt 00:00:02]} Nc5 {[%clk
00:00:11]} {[%emt 00:00:09]} 19. Be3 {[%clk 00:01:12]} {[%emt 00:00:16]} O-O
{[%clk 00:00:05]} {[%emt 00:00:08]} 20. Qxc5 {[%clk 00:01:11]} {[%emt
00:00:03]} Qxc5 {[%clk 00:00:05]} {[%emt 00:00:02]} 21. Bxc5 {[%clk 00:01:12]}
{[%emt 00:00:01]} Bxg2 {[%clk 00:00:05]} {[%emt 00:00:02]} 22. Kxg2 {[%clk
00:01:13]} {[%emt 00:00:02]} Re8 {[%clk 00:00:06]} 23. Rb1 {[%clk 00:01:14]}
{[%emt 00:00:01]} Rd8 {[%clk 00:00:05]} {[%emt 00:00:02]} 24. Rxb5 {[%clk
00:01:12]} {[%emt 00:00:04]} Rd2 {[%clk 00:00:06]} {[%emt 00:00:01]} 25. Be3
{[%clk 00:01:08]} {[%emt 00:00:06]} Rc2 {[%clk 00:00:06]} {[%emt 00:00:03]} 26.
Rxe5 {[%clk 00:01:08]} {[%emt 00:00:01]} Rxc3 {[%clk 00:00:07]} {[%emt
00:00:01]} 27. Rxe7 {[%clk 00:01:09]} {[%emt 00:00:01]} Rc2 {[%clk 00:00:07]}
{[%emt 00:00:02]} 28. Rc7 {[%clk 00:01:09]} {[%emt 00:00:01]} h5 {[%clk
00:00:06]} {[%emt 00:00:04]} 29. Bd4 {[%clk 00:01:09]} {[%emt 00:00:01]} Rxe2
{[%clk 00:00:06]} {[%emt 00:00:02]} 30. Rxc4 {[%clk 00:01:09]} {[%emt
00:00:02]} Kf7 {[%clk 00:00:07]} {[%emt 00:00:01]} 31. Be3 {[%clk 00:01:09]}
{[%emt 00:00:02]} Ra2 {[%clk 00:00:08]} {[%emt 00:00:01]} 32. Rc7+ {[%clk
00:01:09]} {[%emt 00:00:02]} Ke6 {[%clk 00:00:08]} {[%emt 00:00:02]} 33. Rc6+
{[%clk 00:01:10]} {[%emt 00:00:01]} Kf5 {[%clk 00:00:09]} {[%emt 00:00:01]} 34.
h3 {[%clk 00:01:10]} {[%emt 00:00:02]} Ra4 {[%clk 00:00:07]} {[%emt 00:00:03]}
35. Kf3 {[%clk 00:01:10]} {[%emt 00:00:02]} g5 {[%clk 00:00:07]} {[%emt
00:00:03]} 36. Rc5+ {[%clk 00:01:09]} 1-0